Workbook

Sheet Cash Budget
B4: Cash Budget
B5: For Jul-2009 through Jun-2010
C7: Jul | D7: =INDEX(AP199:BA200,1,AQ200+1) -> Aug | E7: =INDEX(AP199:BA200,1,AR200+1) -> Sep | F7: =INDEX(AP199:BA200,1,AS200+1) -> Oct | G7: =INDEX(AP199:BA200,1,AT200+1) -> Nov | H7: =INDEX(AP199:BA200,1,AU200+1) -> Dec | I7: =INDEX(AP199:BA200,1,AV200+1) -> Jan | J7: =INDEX(AP199:BA200,1,AW200+1) -> Feb | K7: =INDEX(AP199:BA200,1,AX200+1) -> Mar | L7: =INDEX(AP199:BA200,1,AY200+1) -> Apr | M7: =INDEX(AP199:BA200,1,AZ200+1) -> May | N7: =INDEX(AP199:BA200,1,BA200+1) -> Jun | P7: Total
B8: Beginning cash balance | C8: $935 | D8: =IF(ISNUMBER(C24),C24,"") -> $891 | E8: $928 | F8: $895 | G8: $889 | H8: $939 | I8: $952 | J8: $927 | K8: $920 | L8: $909 | M8: $977 | N8: $927 | P8: =IF(ISNUMBER(C8),C8,"") -> $935
B9: Cash from operations | C9: 125 | D9: 218 | E9: 141 | F9: 156 | G9: 211 | H9: 161 | I9: 155 | J9: 187 | K9: 167 | L9: 246 | M9: 132 | N9: 184 | P9: =IF(SUM(C9:N9),SUM(C9:N9),"") -> 2,083
B10: Total Available Cash | C10: =IF(OR(C8<>0,C9),C8+C9,"") -> $1,060 | D10: =IF(OR(ISNUMBER(D8),ISNUMBER(D9)),D8+D9,"") -> $1,109 | E10: $1,069 | F10: $1,051 | G10: $1,100 | H10: $1,100 | I10: $1,107 | J10: $1,114 | K10: $1,087 | L10: $1,155 | M10: $1,109 | N10: $1,111 | P10: =IF(SUM(P8:P9),SUM(P8:P9),"") -> $3,018
B11: Less:
B12: Capital expenditures | C12: $113 | D12: $123 | E12: $113 | F12: $106 | G12: $102 | H12: $94 | I12: $114 | J12: $126 | K12: $133 | L12: $126 | M12: $119 | N12: $123 | P12: =IF(SUM(C12:N12),SUM(C12:N12),"") -> $1,392
B13: Interest | C13: 20 | D13: 26 | E13: 24 | F13: 25 | G13: 21 | H13: 22 | I13: 27 | J13: 29 | K13: 20 | L13: 27 | M13: 23 | N13: 29 | P13: =IF(SUM(C13:N13),SUM(C13:N13),"") -> 293
B14: Dividends | C14: 2 | D14: 4 | E14: 3 | F14: 5 | G14: 0 | H14: 2 | I14: 1 | J14: 2 | K14: 3 | L14: 2 | M14: 4 | N14: 5 | P14: =IF(SUM(C14:N14),SUM(C14:N14),"") -> 33
B15: Debt retirement | C15: 50 | D15: 31 | E15: 40 | F15: 32 | G15: 48 | H15: 39 | I15: 46 | J15: 41 | K15: 34 | L15: 30 | M15: 40 | N15: 42 | P15: =IF(SUM(C15:N15),SUM(C15:N15),"") -> 473
B16: Other | C16: 0 | D16: 0 | E16: 0 | F16: 0 | G16: 0 | H16: 0 | I16: 0 | J16: 0 | K16: 0 | L16: 2 | M16: 0 | N16: 0 | P16: =IF(SUM(C16:N16),SUM(C16:N16),"") -> 2
B17: Total Disbursements | C17: =IF(SUM(C12:C16),SUM(C12:C16),"") -> $185 | D17: $184 | E17: $180 | F17: $168 | G17: $171 | H17: $157 | I17: $188 | J17: $198 | K17: $190 | L17: $187 | M17: $186 | N17: $199 | P17: =IF(SUM(P12:P16),SUM(P12:P16),"") -> $2,193
B18: Cash Balance (Deficit) | C18: =IF(OR(SUM(C10),SUM(C17)),SUM(C10)-SUM(C17),"") -> $875 | D18: $925 | E18: $889 | F18: $883 | G18: $929 | H18: $943 | I18: $919 | J18: $916 | K18: $897 | L18: $968 | M18: $923 | N18: $912 | P18: =IF(OR(SUM(P10),SUM(P17)),SUM(P10)-SUM(P17),"") -> $825
B19: Add:
B20: Short-term loans | C20: 6 | D20: 3 | E20: 6 | F20: 6 | G20: 10 | H20: 9 | I20: 8 | J20: 4 | K20: 7 | L20: 9 | M20: 4 | N20: 5 | P20: =IF(SUM(C20:N20),SUM(C20:N20),"") -> 77
B21: Long-term loans | C21: $10 | D21: $0 | E21: $0 | F21: $0 | G21: $0 | H21: $0 | I21: $0 | J21: $0 | K21: $5 | L21: $0 | M21: $0 | N21: $0 | P21: =IF(SUM(C21:N21),SUM(C21:N21),"") -> $15
B22: Capital stock issues | C22: 0 | D22: 0 | E22: 0 | F22: 0 | G22: 0 | H22: 0 | I22: 0 | J22: 0 | K22: 0 | L22: 0 | M22: 0 | N22: 0 | P22: =IF(SUM(C22:N22),SUM(C22:N22),"") -> 
B23: Total Additions | C23: =IF(SUM(C20:C22),SUM(C20:C22),"") -> 16 | D23: 3 | E23: 6 | F23: 6 | G23: 10 | H23: 9 | I23: 8 | J23: 4 | K23: 12 | L23: 9 | M23: 4 | N23: 5 | P23: =IF(SUM(C23:N23),SUM(C23:N23),"") -> 92
B24: Ending Cash Balance | C24: =IF(OR(ISNUMBER(C18),ISNUMBER(C23)),SUM(C18)+SUM(C23),"") -> $891 | D24: $928 | E24: $895 | F24: $889 | G24: $939 | H24: $952 | I24: $927 | J24: $920 | K24: $909 | L24: $977 | M24: $927 | N24: $917 | P24: =IF(OR(ISNUMBER(P18),ISNUMBER(P23)),SUM(P18)+SUM(P23),"") -> $917
AP198: MONTH TABLE: DO NOT CHANGE
AP199: Jan | AQ199: Feb | AR199: Mar | AS199: Apr | AT199: May | AU199: Jun | AV199: Jul | AW199: Aug | AX199: Sep | AY199: Oct | AZ199: Nov | BA199: Dec
AP200: =MATCH(PROPER(LEFT(TRIM(C7),3)),AP199:BA199,0)-1 -> 6 | AQ200: =IF(AP200=11,0,AP200+1) -> 7 | AR200: 8 | AS200: 9 | AT200: 10 | AU200: 11 | AV200: 0 | AW200: 1 | AX200: 2 | AY200: 3 | AZ200: 4 | BA200: 5
